bitfinex/quotes_SOLUSD_20250219
["timestamp","ask_amount","ask_price","bid_price","bid_amount"]
[1739970789731,38.36919488,172.55,172.54,0.063]
[1739970789929,56.53114123,172.55,172.54,0.063]
[1739970790106,57.53114123,172.55,172.54,0.063]
[1739970791405,39.36919488,172.55,172.54,0.063]
[1739970791729,38.36919488,172.55,172.54,0.063]
[1739970791934,37.36919488,172.55,172.54,0.063]
[1739970794834,39.36919488,172.55,172.54,0.063]
[1739970795220,57.53114123,172.55,172.54,0.063]
[1739970795824,37.3238927,172.53,172.52,0.063]
[1739970796025,50.73574123,172.53,172.52,0.063]
[1739970796242,1.0,172.51,172.48,0.063]
[1739970796417,18.16194635,172.49,172.48,0.063]
[1739970796617,31.57379488,172.49,172.48,0.063]
[1739970798535,37.37119488,172.49,172.48,0.063]
[1739970800223,1.0,172.45,172.41,0.063]
[1739970800427,1.0,172.44,172.41,0.063]
[1739970800629,18.16194635,172.42,172.41,0.063]
[1739970801445,31.57379488,172.42,172.41,0.063]
[1739970802335,14.41184853,172.41,172.35,0.063]
[1739970802523,31.57379488,172.38,172.35,0.063]
[1739970803550,33.57379488,172.38,172.35,0.063]
[1739970804234,39.37489488,172.38,172.35,0.063]
[1739970804938,50.73574123,172.37,172.35,0.063]
[1739970805135,51.73574123,172.37,172.35,0.063]
[1739970806124,1.0,172.35,172.26,20.0]
[1739970806322,18.16194635,172.29,172.26,20.0]
[1739970806721,18.16194635,172.29,172.26,25.8051]
[1739970807252,18.16194635,172.29,172.26,20.0]
[1739970807632,18.16194635,172.29,172.26,25.805]
[1739970807846,18.16194635,172.29,172.26,20.0]
[1739970808230,18.16194635,172.29,172.26,25.8051]
[1739970809123,18.16194635,172.31,172.26,25.8051]
[1739970809524,217.2,172.3,172.26,25.8051]
[1739970810951,18.16194635,172.29,172.26,20.0]
[1739970812137,18.16194635,172.27,172.26,0.03]
[1739970812532,100.86194635,172.28,172.26,0.03]
[1739970812852,82.7,172.27,172.26,0.03]
[1739970813044,100.86194635,172.27,172.26,0.03]
[1739970813434,18.16194635,172.27,172.26,0.03]
[1739970814548,37.37859488,172.27,172.26,0.03]
[1739970815560,38.37859488,172.27,172.26,0.03]
[1739970816266,57.54054123,172.27,172.26,0.03]
[1739970816633,56.54054123,172.27,172.26,0.03]
[1739970816859,57.54054123,172.27,172.26,0.03]
[1739970818950,1.0,172.23,172.12,5.8099]
[1739970819151,18.16194635,172.18,172.12,23.97184635]
[1739970819353,82.7,172.17,172.13,18.16194635]
[1739970819553,82.7,172.17,172.15,18.16194635]
[1739970819859,82.7,172.17,172.16,18.16194635]
[1739970820061,18.16194635,172.22,172.15,38.16194635]
[1739970820062,82.7,172.21,172.15,38.16194635]
[1739970820358,82.7,172.2,172.15,38.16194635]
[1739970821170,82.7,172.2,172.16,5.8085]
[1739970821665,82.7,172.2,172.17,18.16194635]
[1739970821964,82.7,172.2,172.19,1.5339]
[1739970822352,82.7,172.24,172.19,19.69584635]
[1739970822554,82.7,172.24,172.2,18.16194635]
[1739970823363,82.7,172.24,172.19,19.69584635]
[1739970823543,82.7,172.24,172.2,5.8072]
[1739970823747,82.7,172.24,172.2,23.96914635]
[1739970824163,82.7,172.24,172.2,5.8072]
[1739970824358,82.7,172.24,172.2,23.96914635]
[1739970824666,217.2,172.25,172.21,18.16194635]
[1739970824965,217.2,172.25,172.2,23.96914635]
[1739970825270,235.36194635,172.25,172.2,5.8072]
[1739970825441,217.2,172.25,172.2,23.96914635]
[1739970826551,235.36194635,172.25,172.2,5.8072]
[1739970827869,235.36194635,172.25,172.2,23.96914635]
[1739970827870,217.2,172.25,172.2,23.96914635]
[1739970828577,217.2,172.25,172.21,18.16194635]
[1739970828872,82.7,172.27,172.2,5.8072]
[1739970829080,82.7,172.27,172.19,1.5639]
[1739970829081,18.16194635,172.24,172.19,7.3713]
[1739970830174,18.16194635,172.23,172.19,1.5639]
[1739970830475,18.16194635,172.23,172.19,7.3712]
[1739970830656,82.7,172.22,172.19,1.5639]
[1739970831160,18.16194635,172.21,172.19,1.5639]
[1739970831552,18.16194635,172.21,172.19,7.3714]
[1739970832354,100.86194635,172.22,172.19,7.3714]
[1739970832679,100.86194635,172.22,172.19,1.5639]
[1739970834984,82.7,172.22,172.19,7.3712]
[1739970835284,82.7,172.22,172.19,25.53314635]
[1739970835594,82.7,172.22,172.19,7.3712]
[1739970836189,235.36194635,172.24,172.19,7.3712]
[1739970836491,18.16194635,172.22,172.19,0.03]
[1739970837291,235.36194635,172.24,172.19,0.03]
[1739970837492,235.36194635,172.24,172.19,5.8374]
[1739970838176,235.36194635,172.24,172.19,0.03]
[1739970838492,18.16194635,172.23,172.19,0.03]
[1739970838878,248.77379488,172.24,172.19,0.03]
[1739970839487,217.2,172.24,172.2,18.16194635]
[1739970839668,217.2,172.24,172.19,18.19194635]
[1739970840166,217.2,172.24,172.19,0.03]
[1739970840478,235.36194635,172.24,172.19,0.03]
[1739970840672,228.87678745,172.24,172.19,0.03]
[1739970840873,234.68258745,172.24,172.19,0.03]
[1739970841074,11.67678745,172.22,172.19,0.03]
[1739970843790,82.7,172.21,172.19,0.03]
[1739970843991,94.37678745,172.21,172.19,0.03]
[1739970845674,82.7,172.21,172.19,0.03]
[1739970851576,82.7,172.21,172.19,11.70678745]
[1739970851978,82.7,172.21,172.19,0.03]
[1739970853276,82.7,172.21,172.19,5.8375]
[1739970854001,217.2,172.23,172.19,5.8375]
[1739970855701,217.2,172.23,172.19,0.03]
[1739970856085,228.87678745,172.23,172.19,0.03]
[1739970857006,217.2,172.23,172.19,0.03]
[1739970857707,228.87678745,172.23,172.19,0.03]
[1739970859307,217.2,172.23,172.19,0.03]
[1739970859793,228.87678745,172.23,172.19,0.03]
[1739970860102,94.37678745,172.23,172.19,0.03]
[1739970861207,100.18298745,172.23,172.19,0.03]
[1739970861413,11.67678745,172.22,172.19,0.03]
[1739970862403,94.37678745,172.23,172.19,0.03]
[1739970865988,82.7,172.22,172.19,0.03]
[1739970866184,11.67678745,172.2,172.19,0.03]
[1739970868798,134.5,172.22,172.19,0.03]
[1739970870216,82.7,172.24,172.19,0.03]
[1739970870418,82.7,172.23,172.19,0.03]
[1739970872127,11.67678745,172.22,172.19,0.03]
[1739970872325,25.08863598,172.2,172.19,0.03]
[1739970872531,11.67678745,172.15,172.11,1.6315]
[1739970872918,11.67678745,172.13,172.08,0.03]
[1739970873441,11.67678745,172.12,172.08,5.8412]
[1739970873717,11.67678745,172.12,172.08,0.03]
[1739970874554,11.67678745,172.11,172.08,0.03]
[1739970875715,82.7,172.13,172.08,0.03]
[1739970875716,11.67678745,172.1,172.08,0.03]
[1739970876354,11.67678745,172.09,172.08,0.03]
[1739970877952,94.37678745,172.12,172.08,0.03]
[1739970878154,94.37678745,172.11,172.08,0.03]
[1739970878861,11.67678745,172.1,172.08,0.03]
[1739970880337,82.7,172.11,172.08,0.03]
[1739970880533,94.37678745,172.11,172.08,0.03]
[1739970880731,82.7,172.11,172.08,0.03]
[1739970881264,94.37678745,172.11,172.08,0.03]
[1739970881862,82.7,172.11,172.08,0.03]
[1739970882564,82.7,172.11,172.08,11.70678745]
[1739970882863,11.67678745,172.16,172.1,11.67678745]
[1739970883030,82.7,172.15,172.1,11.67678745]
[1739970883644,82.7,172.15,172.1,17.48718745]
[1739970883965,82.7,172.15,172.12,11.67678745]
[1739970884158,94.37678745,172.18,172.12,11.67678745]
[1739970884336,82.7,172.17,172.12,11.67678745]
[1739970885958,82.7,172.17,172.12,17.48658745]
[1739970887067,82.7,172.2,172.16,11.67678745]
[1739970887565,94.37678745,172.2,172.14,11.67678745]
[1739970887944,82.7,172.2,172.14,11.67678745]
[1739970888144,82.7,172.2,172.15,5.8088]
[1739970889466,94.37678745,172.2,172.15,5.8088]
[1739970890050,82.7,172.2,172.15,5.8088]
[1739970891068,94.37678745,172.2,172.15,5.8088]
[1739970892681,82.7,172.19,172.15,5.8088]
[1739970896365,82.763,172.19,172.16,11.67678745]
[1739970896563,0.063,172.19,172.18,11.67678745]
[1739970897795,0.063,172.19,172.18,19.47028745]
[1739970898262,0.063,172.19,172.18,25.27808745]
[1739970900497,0.063,172.19,172.18,7.4095]
[1739970900805,0.063,172.19,172.16,17.48498745]
[1739970902597,0.063,172.19,172.17,11.67678745]
[1739970902799,0.063,172.19,172.18,11.67678745]
[1739970902966,0.063,172.23,172.22,20.0]
[1739970903299,0.063,172.23,172.22,31.67678745]
[1739970904400,0.063,172.23,172.22,37.48328745]
[1739970904596,0.063,172.23,172.22,44.03836318]
[1739970905702,0.063,172.23,172.22,25.8065]
[1739970905999,0.063,172.23,172.21,24.03856318]
[1739970906399,0.063,172.23,172.2,24.03906318]
[1739970907268,0.063,172.35,172.29,20.0]
[1739970907476,0.063,172.35,172.34,18.23186318]
[1739970908485,0.063,172.35,172.34,24.03426318]
[1739970910977,0.063,172.37,172.34,42.26612636]
[1739970911184,0.0001,172.37,172.36,38.23186318]
[1739970912523,0.0001,172.37,172.36,44.03366318]
[1739970915116,0.0001,172.37,172.36,46.87228063]
[1739970917722,0.0001,172.37,172.36,44.03366318]
[1739970919925,0.0001,172.37,172.36,46.88420097]
[1739970921934,0.063,172.41,172.36,90.39770097]
[1739970922110,0.063,172.41,172.4,18.23186318]
[1739970923111,0.063,172.41,172.4,24.03226318]
[1739970923735,0.063,172.44,172.4,38.53336318]
[1739970923939,0.063,172.44,172.43,18.23186318]
[1739970925228,0.063,172.44,172.43,24.03126318]
[1739970926134,0.0001,172.44,172.43,42.26312636]
[1739970927940,82.7,172.54,172.46,20.0]
[1739970928139,82.7,172.54,172.5,18.23186318]
[1739970929138,82.7,172.54,172.51,18.23186318]
[1739970929810,82.7,172.54,172.5,18.23186318]
[1739970930212,18.23186318,172.52,172.46,18.23186318]
[1739970930415,100.93186318,172.52,172.46,18.23186318]
[1739970930822,82.7,172.52,172.48,18.23186318]
[1739970931623,82.7,172.52,172.49,18.23186318]
[1739970932048,82.7,172.52,172.44,18.23186318]
[1739970932049,82.7,172.52,172.5,18.23186318]
[1739970932249,82.73,172.53,172.5,18.23186318]
[1739970932419,82.73,172.53,172.49,18.23186318]
[1739970933546,82.73,172.53,172.52,18.23186318]
[1739970936841,82.73,172.53,172.52,24.02826318]
[1739970937230,0.03,172.53,172.52,24.02826318]
[1739970937529,0.03,172.53,172.51,18.23186318]
[1739970939042,0.03,172.53,172.52,18.23186318]
[1739970940820,82.7,172.61,172.55,20.0]
[1739970941142,82.7001,172.64,172.6,18.23186318]
[1739970941340,82.7001,172.64,172.58,5.7942]
[1739970941341,100.93196318,172.64,172.58,24.02606318]
[1739970942133,82.7001,172.64,172.59,18.23186318]
[1739970942938,100.93196318,172.64,172.58,18.23186318]
[1739970943237,18.23186318,172.61,172.55,18.23186318]
[1739970943438,18.23186318,172.6,172.54,24.02756318]
[1739970943826,100.93186318,172.61,172.55,18.23186318]
[1739970944350,100.93186318,172.61,172.56,18.23186318]
[1739970944850,100.93186318,172.61,172.55,18.23186318]
[1739970946063,82.7,172.61,172.58,18.23186318]
[1739970947043,82.7,172.61,172.58,24.02616318]
[1739970947361,82.7,172.61,172.56,38.23186318]
[1739970948454,82.7,172.61,172.56,44.02666318]
[1739970949054,18.23186318,172.62,172.56,44.02666318]
[1739970950776,18.23186318,172.62,172.57,18.23186318]
[1739970951876,166.14371171,172.63,172.57,18.23186318]
[1739970952883,166.14371171,172.63,172.57,24.02626318]
[1739970954179,18.23186318,172.62,172.56,38.23186318]
[1739970954673,152.73186318,172.63,172.57,18.23186318]
[1739970955058,82.7,172.61,172.57,18.23186318]
[1739970956290,82.7,172.61,172.57,24.02636318]
[1739970959089,82.73,172.61,172.57,24.02636318]
[1739970959390,82.73,172.61,172.59,18.23186318]
[1739970959587,82.73,172.61,172.6,18.23186318]
[1739970959764,82.73,172.61,172.59,18.23186318]
[1739970960497,82.73,172.61,172.59,24.02576318]
[1739970962187,0.03,172.61,172.6,18.23186318]
[1739970965907,0.03,172.61,172.58,18.23186318]
[1739970966115,0.03,172.61,172.57,18.23186318]
[1739970966603,0.03,172.61,172.57,11.62613634]
[1739970967104,0.03,172.61,172.6,11.62613634]
[1739970968111,0.03,172.61,172.6,17.41983634]
[1739970968483,0.03,172.61,172.6,98.31983634]
[1739970968679,0.03,172.61,172.6,104.8411657]
[1739970969286,0.0001,172.64,172.62,6.1061]
[1739970969506,0.0001,172.64,172.63,18.1474657]
[1739970970092,0.0001,172.64,172.63,23.9401657]
[1739970975808,0.0001,172.64,172.63,104.8401657]
[1739970976989,0.0001,172.64,172.63,122.19312458]
[1739970979815,0.03,172.69,172.66,20.0]
[1739970980025,0.03,172.69,172.68,18.1474657]
[1739970980903,0.03,172.7,172.69,18.1474657]
[1739970981935,0.03,172.7,172.65,18.1474657]
[1739970982100,18.1774657,172.7,172.64,23.9394657]
[1739970982307,0.03,172.7,172.65,18.1474657]
[1739970982527,0.03,172.7,172.66,18.1474657]
[1739970983131,18.1774657,172.7,172.65,5.7918]
[1739970983511,18.1774657,172.7,172.65,23.9392657]
[1739970983823,18.1774657,172.7,172.64,23.9397657]
[1739970984027,18.1474657,172.67,172.61,18.1474657]
[1739970984235,18.1474657,172.66,172.6,18.1474657]
[1739970985031,100.8474657,172.67,172.62,5.793]
[1739970985728,82.7,172.67,172.63,18.1474657]
[1739970985934,82.7,172.67,172.61,18.1474657]
[1739970985935,100.8474657,172.67,172.61,18.1474657]
[1739970986135,100.8474657,172.67,172.61,23.9407657]
[1739970986514,82.7,172.67,172.62,18.1474657]
[1739970987450,82.7,172.67,172.62,23.9403657]
[1739970987801,82.7,172.67,172.62,18.1474657]
[1739970988013,82.7,172.67,172.63,18.1474657]
[1739970988531,82.7,172.67,172.64,18.1474657]
[1739970988737,134.5,172.68,172.64,18.1474657]
[1739970988738,82.7,172.69,172.64,18.1474657]
[1739970988925,100.8474657,172.69,172.63,18.1474657]
[1739970989819,100.8474657,172.69,172.63,23.9399657]
[1739970990025,82.7,172.69,172.64,18.1474657]
[1739970990547,106.6382657,172.69,172.63,18.1474657]
[1739970992045,18.1474657,172.67,172.61,18.1474657]
[1739970992356,18.1474657,172.66,172.6,18.1474657]
[1739970993512,18.1474657,172.66,172.61,18.1474657]
[1739970995629,18.1474657,172.66,172.63,0.063]
[1739970996350,106.6389657,172.67,172.63,0.063]
[1739970996645,82.7,172.66,172.63,0.063]
[1739970997132,100.8474657,172.66,172.63,0.063]
[1739970997445,82.7,172.66,172.63,0.063]
[1739971000761,31.55931423,172.65,172.63,0.063]
[1739971001143,14.41184853,172.63,172.55,0.063]
[1739971001348,18.1474657,172.57,172.55,0.063]
[1739971001665,13.41184853,172.6,172.55,18.2104657]
[1739971001666,82.7,172.59,172.55,18.2104657]
[1739971001849,82.7,172.59,172.56,18.1474657]
[1739971002245,18.1474657,172.63,172.55,0.063]
[1739971002246,82.7,172.62,172.55,0.063]
[1739971002441,82.7,172.62,172.59,18.1474657]
[1739971002640,152.6474657,172.65,172.6,11.6216338]
[1739971002641,82.7,172.64,172.6,11.6216338]
[1739971002970,82.7,172.64,172.59,11.6216338]
[1739971003675,82.7,172.64,172.6,11.6216338]
[1739971004168,82.7,172.64,172.61,11.6216338]
[1739971004339,82.7,172.64,172.62,11.6216338]
[1739971005273,82.7,172.67,172.63,11.6216338]
[1739971005577,82.7,172.67,172.63,17.4143338]
[1739971005737,82.7,172.67,172.63,11.6216338]
[1739971006472,82.7,172.67,172.64,11.6216338]
[1739971006774,82.7,172.67,172.65,11.6216338]
[1739971007075,82.7,172.67,172.64,11.6216338]
[1739971007366,82.7,172.67,172.63,11.6216338]
[1739971007744,82.7,172.67,172.63,17.4142338]
[1739971008380,82.7,172.67,172.64,11.6216338]
[1739971009567,82.7,172.67,172.65,11.6216338]
[1739971009871,82.7,172.67,172.65,17.4134338]
[1739971011369,82.7,172.67,172.65,5.7918]
[1739971011674,0.03,172.69,172.65,5.7918]
[1739971011858,0.03,172.69,172.64,11.6216338]
[1739971012977,0.03,172.69,172.65,5.792]
[1739971013481,0.03,172.69,172.65,17.4136338]
[1739971018674,0.03,172.69,172.65,5.792]
[1739971018977,11.6516338,172.69,172.63,17.4770338]
[1739971019476,0.03,172.69,172.64,11.6216338]
[1739971019980,0.03,172.69,172.65,5.792]
[1739971020956,0.03,172.69,172.65,17.4136338]
[1739971022483,0.03,172.69,172.67,11.6216338]
[1739971023292,0.03,172.69,172.68,11.6216338]
[1739971024375,0.03,172.69,172.68,17.4126338]
[1739971025690,0.03,172.7,172.69,9.12599818]
[1739971025891,0.03,172.7,172.69,34.15948051]
[1739971026060,0.0001,172.7,172.69,34.15948051]
[1739971026260,0.0001,172.7,172.69,115.05948051]
[1739971026582,0.0001,172.7,172.69,120.85018051]
[1739971027400,100.1383338,172.81,172.69,120.85018051]
[1739971027401,0.03,172.83,172.8,20.0]
[1739971027605,0.03,172.83,172.81,11.6216338]
[1739971027890,0.03,172.83,172.81,20.0]
[1739971028082,0.03,172.83,172.81,31.6216338]
[1739971028281,0.03,172.86,172.85,20.0]
[1739971028477,0.03,172.86,172.85,31.6216338]
[1739971028966,0.03,172.86,172.85,37.4069338]
[1739971030564,0.03,172.86,172.85,43.8854415]
[1739971032385,0.03,172.87,172.86,18.1001415]
[1739971032988,0.03,172.87,172.86,23.8851415]
[1739971033173,0.03,172.87,172.86,104.7851415]
[1739971035692,82.7,172.95,172.86,119.2476415]
[1739971035866,82.7,172.96,172.91,18.1001415]
[1739971037014,82.7,172.96,172.92,5.783]
[1739971037219,82.7,172.96,172.93,18.1001415]
[1739971037386,82.7,172.96,172.92,18.1001415]
[1739971038417,82.7,172.97,172.92,18.1001415]
[1739971038624,82.7,172.97,172.89,23.8838415]
[1739971038625,18.1001415,172.95,172.89,23.8838415]
[1739971038794,82.7,172.97,172.9,18.1001415]
[1739971038999,18.1001415,172.96,172.9,18.1001415]
[1739971039223,18.1001415,172.96,172.91,5.7833]
[1739971039614,13.41184853,172.96,172.91,23.8834415]
[1739971040820,100.8001415,172.97,172.91,23.8834415]
[1739971042922,31.54199003,172.96,172.91,5.7833]
[1739971043106,31.54199003,172.96,172.87,18.1631415]
[1739971043107,18.1001415,172.93,172.87,18.1631415]
[1739971043424,18.1001415,172.93,172.88,5.7843]
[1739971046132,31.51199003,172.92,172.87,5.8476]
[1739971046429,82.7,172.91,172.87,5.8476]
[1739971048518,82.7,172.91,172.88,18.1001415]
[1739971049009,82.7,172.91,172.89,18.1001415]
[1739971050221,82.7,172.91,172.88,18.1001415]
[1739971050434,82.7,172.91,172.89,5.784]
[1739971050937,82.7,172.91,172.88,23.8843415]
[1739971052634,82.7,172.91,172.88,11.58327311]
[1739971052810,82.7,172.91,172.89,11.58327311]
[1739971053133,82.7,172.93,172.89,11.58327311]
[1739971054640,82.7,172.93,172.9,11.58327311]
[1739971054939,82.7,172.93,172.91,11.58327311]
[1739971055140,0.03,172.96,172.91,11.58327311]
[1739971055437,0.03,172.96,172.92,11.58327311]
[1739971056524,0.03,172.96,172.93,5.7826]
[1739971057705,0.03,172.96,172.91,5.783]
[1739971057706,18.09028649,172.95,172.91,5.783]
[1739971057927,18.12028649,172.96,172.91,5.783]
[1739971058510,18.09028649,172.95,172.91,5.783]
[1739971059107,82.7,172.94,172.91,5.783]
[1739971059648,82.7,172.94,172.93,20.0]
[1739971059819,82.7,172.94,172.91,5.783]
[1739971060845,82.7,172.94,172.91,23.87328649]
[1739971061636,82.7,172.94,172.91,38.33158649]
[1739971061844,0.03,172.96,172.94,20.0]
[1739971062011,0.03,172.96,172.95,18.09028649]
[1739971062742,0.03,172.96,172.95,23.87228649]
[1739971063342,0.03,172.96,172.94,43.87248649]
[1739971064832,0.03,172.96,172.95,18.09028649]
[1739971065025,0.03,172.96,172.95,23.87228649]
[1739971065222,0.03,172.96,172.94,25.7823]
[1739971065542,18.09028649,172.95,172.9,18.09028649]
[1739971065841,18.09028649,172.95,172.89,23.87428649]
[1739971066521,18.09028649,172.95,172.9,18.09028649]
[1739971067545,18.12028649,172.95,172.9,23.87378649]
[1739971068324,18.12028649,172.95,172.87,0.063]
[1739971068325,18.09028649,172.91,172.87,0.063]
[1739971068546,18.09028649,172.89,172.87,0.063]
[1739971068728,18.09028649,172.88,172.87,0.063]
[1739971069647,31.50213502,172.88,172.87,0.063]
[1739971070547,13.41184853,172.88,172.87,0.063]
[1739971071148,18.09028649,172.91,172.87,0.063]
[1739971071443,179.1208,172.93,172.9,18.09028649]
[1739971071816,1.616,172.95,172.9,18.09028649]
[1739971072021,64.32708649,172.95,172.89,18.09028649]
[1739971072354,31.50213502,172.94,172.88,18.09028649]
[1739971072637,18.09028649,172.92,172.87,18.15328649]
[1739971072843,18.09028649,172.92,172.87,0.063]
[1739971073151,13.41184853,172.88,172.87,0.063]
[1739971073322,76.12293502,172.88,172.87,0.063]
[1739971074444,44.6208,172.88,172.87,0.063]
[1739971076935,18.09028649,172.9,172.87,0.063]
[1739971077562,31.50213502,172.89,172.87,0.063]
[1739971077931,13.41184853,172.89,172.87,0.063]
[1739971078244,18.09028649,172.91,172.87,0.063]
[1739971078624,13.41184853,172.9,172.87,0.063]
[1739971079438,197.21108649,172.93,172.87,38.15328649]
[1739971079653,44.6208,172.93,172.88,18.09028649]
[1739971080737,13.41184853,172.92,172.87,38.15328649]
[1739971080943,31.50213502,172.92,172.87,20.063]
[1739971081134,31.50213502,172.92,172.87,0.063]
[1739971081459,13.41184853,172.92,172.87,18.15328649]
[1739971081656,13.41184853,172.92,172.87,23.93768649]
[1739971082747,44.6208,172.91,172.87,23.93768649]
[1739971084460,44.6208,172.91,172.88,18.09028649]
[1739971085237,44.6208,172.91,172.89,5.784]
[1739971086636,44.6208,172.91,172.88,23.87458649]
[1739971087764,44.6208,172.91,172.88,18.09028649]
[1739971088064,44.6208,172.91,172.87,18.15328649]
[1739971088366,62.71108649,172.91,172.87,0.063]
[1739971088551,18.09028649,172.9,172.87,0.063]
[1739971088887,58.03264853,172.9,172.87,0.063]
[1739971089883,134.5,172.94,172.87,0.063]
[1739971089884,62.71108649,172.92,172.87,0.063]
[1739971090580,44.6208,172.92,172.87,18.15328649]
[1739971091878,44.6208,172.92,172.88,5.7843]
[1739971092058,44.6208,172.92,172.88,23.87458649]
[1739971092465,44.6208,172.92,172.89,18.09028649]
[1739971093265,44.6208,172.92,172.88,23.87458649]
[1739971094390,18.12028649,172.94,172.88,23.87458649]
[1739971094579,0.03,172.94,172.89,18.09028649]
[1739971095891,18.12028649,172.94,172.88,18.09028649]
[1739971096602,18.12028649,172.94,172.87,18.15328649]
[1739971096794,23.90258649,172.94,172.87,23.93778649]
[1739971097097,0.03,172.94,172.89,18.09028649]
[1739971098099,0.03,172.94,172.89,23.87398649]
[1739971098278,0.03,172.94,172.89,18.09028649]
[1739971098480,18.09028649,172.9,172.87,0.063]
[1739971098680,18.09028649,172.89,172.87,0.063]
[1739971099198,18.09028649,172.88,172.87,0.063]
[1739971099499,31.50213502,172.88,172.87,0.063]
[1739971102989,13.41184853,172.88,172.87,0.063]
[1739971103710,58.03264853,172.88,172.87,0.063]
[1739971105515,44.6208,172.88,172.87,0.063]
[1739971105701,44.6208,172.92,172.87,18.15328649]
[1739971106804,44.6208,172.92,172.88,18.09028649]
[1739971107632,44.6208,172.92,172.89,5.784]
[1739971107985,44.6208,172.92,172.87,18.15328649]
[1739971108188,62.71108649,172.92,172.87,5.8474]
[1739971108614,62.71108649,172.92,172.87,0.063]
[1739971108815,62.71108649,172.92,172.87,5.8476]
[1739971109306,44.6208,172.92,172.88,18.09028649]
[1739971109514,44.6208,172.92,172.9,5.7836]
[1739971109711,44.6208,172.92,172.88,5.7842]
[1739971111431,44.6208,172.92,172.88,23.87448649]
[1739971112427,44.6208,172.92,172.88,5.7842]
[1739971112813,44.6208,172.92,172.88,23.87448649]
[1739971113010,44.6208,172.92,172.87,18.15328649]
[1739971113307,18.09028649,172.9,172.87,0.063]
[1739971114238,18.09028649,172.89,172.88,0.063]
[1739971114424,18.09028649,172.9,172.88,0.063]
[1739971114629,31.50213502,172.91,172.88,0.063]
[1739971115924,18.09028649,172.9,172.88,0.063]
[1739971118508,62.71108649,172.9,172.88,0.063]
[1739971118935,18.09028649,172.89,172.88,0.063]
[1739971119833,31.50213502,172.89,172.88,0.063]
[1739971120026,37.28613502,172.89,172.88,0.063]
[1739971121239,31.50213502,172.89,172.88,0.063]
[1739971121736,37.28613502,172.89,172.88,0.063]
[1739971121921,55.37642151,172.89,172.88,0.063]
[1739971122542,56.37642151,172.89,172.88,0.063]
[1739971122749,57.37642151,172.89,172.88,0.063]
[1739971126829,33.50213502,172.88,172.87,0.063]
[1739971128145,37.28643502,172.88,172.87,0.063]
[1739971130748,39.5620287,172.88,172.87,0.063]
[1739971131248,37.28643502,172.88,172.87,0.063]
[1739971131849,39.28643502,172.88,172.87,0.063]
[1739971133411,33.41184853,172.85,172.77,6.5411]
[1739971133618,18.09028649,172.8,172.77,6.5411]
[1739971133836,18.09028649,172.8,172.75,7.4262]
[1739971134047,18.09028649,172.79,172.75,1.6376]
[1739971134417,18.09028649,172.77,172.73,6.6538]
[1739971134618,18.09028649,172.74,172.71,1.538]
[1739971135016,18.09028649,172.74,172.7,0.063]
[1739971135217,31.50213502,172.71,172.7,0.063]
[1739971135817,13.41184853,172.71,172.7,0.063]
[1739971136019,18.09028649,172.74,172.7,0.063]
[1739971136868,82.7,172.73,172.7,0.063]
[1739971137764,82.7,172.73,172.7,18.15328649]
[1739971138669,82.7,172.73,172.7,0.063]
[1739971139040,18.09028649,172.71,172.7,0.063]
[1739971142976,140.2892,172.74,172.7,18.15328649]
[1739971142977,134.5,172.74,172.7,18.15328649]
[1739971143278,134.5,172.74,172.7,0.063]
[1739971143876,152.59028649,172.74,172.7,0.063]
[1739971144577,134.5,172.74,172.7,0.063]
[1739971145246,82.7,172.74,172.7,0.063]
[1739971145659,82.7,172.74,172.7,18.15328649]
[1739971145874,18.09028649,172.79,172.73,18.09028649]